fUSD/lending_fUSD_20251019
["ID","MTS","AMOUNT","RATE_DAILY","PERIOD"]
[391834890,1760898643192,-3421.97,0.00033212,2]
[391834892,1760898643202,-1293.32811706,0.00033215,5]
[391834894,1760898643212,-474.98,0.00033241,2]
[391834896,1760898643222,-695.55,0.00033241,2]
[391834898,1760898643232,-474.98,0.00033241,2]
[391834900,1760898643246,-900.0,0.00033302,2]
[391834902,1760898643255,-474.98,0.00033341,2]
[391834904,1760898643265,-695.55,0.00033341,2]
[391834906,1760898643274,-689.47,0.00033424,8]
[391834908,1760898643284,-614.66439555,0.00033424,8]
[391834910,1760898643293,-500.0,0.00033424,8]
[391834913,1760898643303,-500.0,0.00033424,8]
[391834915,1760898643312,-500.0,0.00033424,8]
[391834917,1760898643326,-500.0,0.00033424,8]
[391834919,1760898643335,-500.0,0.00033424,8]
[391834921,1760898643344,-500.0,0.00033424,8]
[391834923,1760898643354,-500.0,0.00033424,2]
[391834925,1760898643364,-500.0,0.00033424,8]
[391834927,1760898643374,-500.0,0.00033424,7]
[391834929,1760898643383,-500.0,0.00033424,8]
[391834931,1760898643392,-500.0,0.00033424,8]
[391834933,1760898643403,-500.0,0.00033424,8]
[391834935,1760898643413,-168.0,0.00033476,2]
[391834937,1760898643422,-1093.4,0.00033588,2]
[391834939,1760898643431,-361.89,0.00033588,2]
[391834941,1760898643440,-429.96,0.00033588,2]
[391834943,1760898643450,-186.55,0.00033588,2]
[391834945,1760898643459,-546.93,0.00033588,2]
[391834947,1760898643469,-150.92,0.00033588,2]
[391834949,1760898643478,-168.31,0.00033588,2]
[391834951,1760898643487,-150.28,0.00033588,2]
[391834953,1760898643496,-546.93,0.00033588,2]
[391834955,1760898643505,-168.31,0.00033588,2]
[391834957,1760898643515,-413.23,0.00033588,2]
[391834959,1760898643525,-689.47,0.00033698,8]
[391834961,1760898643535,-500.0,0.00033698,8]
[391834963,1760898643544,-500.0,0.00033698,8]
[391834965,1760898643553,-500.0,0.00033698,8]
[391834967,1760898643563,-500.0,0.00033698,8]
[391834969,1760898643572,-500.0,0.00033698,8]
[391834971,1760898643582,-500.0,0.00033698,8]
[391834973,1760898643591,-500.0,0.00033698,2]
[391834975,1760898643601,-500.0,0.00033698,8]
[391834977,1760898643611,-500.0,0.00033698,7]
[391834999,1760898643622,-201.16722523,0.00033698,8]
[391835002,1760898643820,-500.0,0.00033698,8]
[391835004,1760898643830,-6392.76077452,0.00033783,2]
[391835006,1760898643839,-8099.26527755,0.00033793,2]
[391835008,1760898643849,-689.47,0.00033972,8]
[391835010,1760898643858,-500.0,0.00033972,8]
[391835012,1760898643868,-500.0,0.00033972,8]
[391835014,1760898643877,-500.0,0.00033972,8]
[391835016,1760898643887,-500.0,0.00033972,8]
[391835018,1760898643898,-500.0,0.00033972,8]
[391835020,1760898643907,-500.0,0.00033972,8]
[391835022,1760898643917,-500.0,0.00033972,8]
[391835024,1760898643926,-500.0,0.00033972,7]
[391835026,1760898643936,-500.0,0.00033972,8]
[391835027,1760898643945,-684.78663106,0.00034055,2]
[391835028,1760898643954,-6392.76077452,0.000341,2]
[391835029,1760898643966,-5000.0,0.0003411,2]
[391835030,1760898643975,-1000.0,0.00034114,2]
[391835031,1760898643984,-2500.0,0.00034114,2]
[391835032,1760898643993,-6277.12321195,0.00034189,2]
[391835033,1760898644002,-157.79104,0.0003419,2]
[391835034,1760898644011,-25571.0430981,0.0003419,2]
[391835035,1760898644020,-25108.4928478,0.0003419,2]
[391835037,1760898644030,-6277.12321195,0.00034194,2]
[391835039,1760898644039,-6392.76077452,0.00034194,2]
[391835041,1760898644049,-6277.12321195,0.00034194,2]
[391835043,1760898644058,-150.0,0.00034195,2]
[391835045,1760898644067,-2218.51535713,0.00034195,2]
[391835047,1760898644077,-25571.0430981,0.00034197,2]
[391835049,1760898644086,-25108.4928478,0.00034197,2]
[391835051,1760898644096,-151.0,0.00034199,14]
[391835053,1760898644106,-19178.2823236,0.00034199,2]
[391835055,1760898644116,-18831.3696359,0.00034199,2]
[391835057,1760898644125,-695.55,0.000342,2]
[391835059,1760898644135,-474.98,0.000342,2]
[391835061,1760898644145,-695.55,0.000342,2]
[391835063,1760898644154,-474.98,0.000342,2]
[391835065,1760898644163,-188.23,0.000342,2]
[391835067,1760898644173,-695.55,0.000342,2]
[391835069,1760898644182,-695.55,0.000342,2]
[391835071,1760898644192,-536.3,0.000342,2]
[391835074,1760898644201,-1394.993,0.000342,38]
[391835076,1760898644211,-2639.34074219,0.000342,5]
[391835078,1760898644225,-253.480003,0.000342,5]
[391835080,1760898644236,-27451.4092867,0.000342,5]
[391835082,1760898644247,-9523.99957396,0.000342,5]
[391835111,1760898645620,-180.20035145,0.00032499,2]
[391835112,1760898645629,-4083.79964855,0.000342,5]
[391835113,1760898645640,-8047.9707456,0.000342,5]
[391835114,1760898645649,-500.0,0.00034202,2]
[391835115,1760898645658,-512.96,0.00034202,7]
[391835116,1760898645667,-5961.57331209,0.00034204,34]
[391835117,1760898645676,-4758.25513269,0.00034204,2]
[391835118,1760898645687,-1634.50564183,0.00034204,2]
[391835119,1760898645701,-12554.2464239,0.00034204,2]
[391835120,1760898645710,-6392.76077452,0.00034204,2]
[391835121,1760898645719,-157.86485125,0.00034205,2]
[391835122,1760898645727,-150.0,0.00034205,2]
[391835123,1760898645735,-150.0,0.00034205,2]
[391835124,1760898645745,-200.0,0.00034205,2]
[391835125,1760898645758,-157.79104,0.00034206,2]
[391835126,1760898645774,-151.0,0.00034207,2]
[391835127,1760898645785,-2097.4532685,0.00034207,2]
[391835128,1760898645838,-4344.6870119,0.00034207,2]
[391835129,1760898645848,-254.6216565,0.00034207,2]
[391835130,1760898645857,-200.0,0.00034207,2]
[391835131,1760898645868,-500.0,0.00034207,8]
[391835132,1760898645878,-205.07568247,0.00034207,8]
[391835133,1760898645894,-403.09594109,0.00034207,8]
[391835134,1760898645903,-577.68287471,0.00034207,8]
[391835135,1760898645913,-241.77828396,0.00034207,2]
[391835136,1760898645947,-58.22171604,0.00034207,2]
[391835137,1760898645957,-292.17257217,0.00034207,8]
[391835138,1760898645966,-500.0,0.00034207,8]
[391835139,1760898645975,-500.0,0.00034207,8]
[391835140,1760898645985,-500.0,0.00034207,8]
[391835141,1760898645994,-500.0,0.00034207,8]
[391835142,1760898646003,-500.0,0.00034207,7]
[391835143,1760898646012,-500.0,0.00034207,7]
[391835144,1760898646021,-500.0,0.00034207,7]
[391835145,1760898646031,-633.52560484,0.00034207,7]
[391835146,1760898646040,-500.0,0.00034207,2]
[391835148,1760898646050,-500.0,0.00034207,8]
[391835149,1760898646059,-2201.0391967,0.00034207,2]
[391835150,1760898646069,-500.0,0.00034207,8]
[391835151,1760898646078,-500.0,0.00034207,8]
[391835152,1760898646088,-500.0,0.00034207,8]
[391835153,1760898646098,-500.0,0.00034207,8]
[391835154,1760898646107,-500.0,0.00034207,8]
[391835155,1760898646116,-500.0,0.00034207,8]
[391835156,1760898646125,-500.0,0.00034207,8]
[391835157,1760898646135,-500.0,0.00034207,8]
[391835158,1760898646145,-133.42261999,0.00034207,8]
[391835161,1760898661121,200.0,0.00034215,120]
[391835162,1760898662158,212.89497163,0.00016499,120]
[391835175,1760898741877,200.0,0.00034215,30]
[391835176,1760898742484,300.0,0.00034215,30]
[391835178,1760898763755,352.0,0.00034215,30]
[391835179,1760898764537,214.6,0.00034215,30]
[391835180,1760898764767,214.6,0.00034215,30]
[391835181,1760898767981,214.6,0.00034215,30]
[391835182,1760898769195,214.6,0.00034215,30]
[391835183,1760898770172,214.6,0.00034215,30]
[391835184,1760898785857,2165.00415131,0.00034215,120]
[391835185,1760898823263,352.0,0.00034209,30]
[391835189,1760898844134,2165.00415131,0.00034209,120]
[391835190,1760898846977,352.0,0.00034209,30]
[391835191,1760898877834,1669.0,0.00034209,30]
[391835192,1760898884866,352.0,0.00034209,30]
[391835193,1760898903116,151.0,0.00034209,30]
[391835194,1760898903161,533.57,0.00034209,30]
[391835195,1760898903203,150.0,0.00034209,30]
[391835196,1760898903244,260.53,0.00034209,30]
[391835197,1760898904287,2165.00415131,0.00034209,120]
[391835198,1760898905100,1000.0,0.00034209,30]
[391835199,1760898905144,1000.0,0.00034209,30]
[391835200,1760898905189,1000.0,0.00034209,30]
[391835201,1760898906336,1000.0,0.00034209,30]
[391835202,1760898906378,1000.0,0.00034209,30]
[391835203,1760898906422,1000.0,0.00034209,30]
[391835204,1760898907472,1000.0,0.00034209,30]
[391835205,1760898907518,1000.0,0.00034209,30]
[391835206,1760898907568,1000.0,0.00034209,30]
[391835207,1760898908619,1000.0,0.00034209,30]
[391835208,1760898908661,1000.0,0.00034209,30]
[391835209,1760898908699,1000.0,0.00034209,30]
[391835211,1760898912306,440.42645486,0.00034209,30]
[391835212,1760898912342,1000.0,0.00034209,30]
[391835213,1760898912380,1000.0,0.00034209,30]
[391835214,1760898913450,1000.0,0.00034209,30]
[391835215,1760898913495,1000.0,0.00034209,30]
[391835216,1760898914589,940.9285668,0.00034209,30]
[391835217,1760898914628,803.73376621,0.00034209,30]
[391835218,1760898962166,200.0,0.00034209,120]
[391835221,1760899025362,200.0,0.00034209,30]
[391835222,1760899025407,1000.0,0.00034209,30]
[391835223,1760899025441,151.0,0.00034209,30]
[391835224,1760899025476,300.0,0.00034209,30]
[391835225,1760899025515,1000.0,0.00034209,30]
[391835226,1760899025548,3000.0,0.00034209,30]
[391835227,1760899025959,207.4,0.00034209,30]
[391835228,1760899026000,151.0,0.00034209,30]
[391835229,1760899026036,500.0,0.00034209,30]
[391835230,1760899026071,1000.0,0.00034209,30]
[391835231,1760899026109,311.1,0.00034209,30]
[391835232,1760899026142,1000.0,0.00034209,30]
[391835233,1760899026189,3000.0,0.00034209,30]
[391835234,1760899026588,215.0738,0.00034209,30]
[391835235,1760899026628,151.0,0.00034209,30]
[391835236,1760899026665,1000.0,0.00034209,30]
[391835237,1760899026699,500.0,0.00034209,30]
[391835238,1760899026736,322.6107,0.00034209,30]
[391835239,1760899026774,1000.0,0.00034209,30]
[391835240,1760899026806,3000.0,0.00034209,30]
[391835241,1760899027188,223.0315306,0.00034209,30]
[391835242,1760899027225,151.0,0.00034209,30]
[391835243,1760899027261,500.0,0.00034209,30]
[391835244,1760899027300,1000.0,0.00034209,30]
[391835245,1760899027339,334.5472959,0.00034209,30]
[391835246,1760899027372,1000.0,0.00034209,30]
[391835247,1760899027404,3000.0,0.00034209,30]
[391835248,1760899027741,625.72636359,0.00034209,30]
[391835249,1760899027787,231.28369723,0.00034209,30]
[391835250,1760899027830,151.0,0.00034209,30]
[391835251,1760899027865,250.0,0.00034209,30]
[391835252,1760899027905,1000.0,0.00034209,30]
[391835253,1760899027939,346.92554585,0.00034209,30]
[391835254,1760899027973,500.0,0.00034209,30]
[391835255,1760899028007,151.0,0.00034209,30]
[391835256,1760899028042,1000.0,0.00034209,30]
[391835257,1760899028085,3000.0,0.00034209,30]
[391835258,1760899028435,151.0,0.00034209,30]
[391835259,1760899028474,250.0,0.00034209,30]
[391835260,1760899028508,1000.0,0.00034209,30]
[391835261,1760899028542,359.76179104,0.00034209,30]
[391835262,1760899028579,156.587,0.00034209,30]
[391835263,1760899028615,500.0,0.00034209,30]
[391835264,1760899028648,1000.0,0.00034209,30]
[391835265,1760899028682,3000.0,0.00034209,30]
[391835266,1760899028921,239.84119403,0.00034209,30]
[391835267,1760899029069,151.0,0.00034209,30]
[391835268,1760899029108,373.07297731,0.00034209,30]
[391835269,1760899029144,1000.0,0.00034209,30]
[391835270,1760899029180,250.0,0.00034209,30]
[391835271,1760899029215,162.380719,0.00034209,30]
[391835272,1760899029249,500.0,0.00034209,30]
[391835273,1760899029286,1000.0,0.00034209,30]
[391835274,1760899029321,3000.0,0.00034209,30]
[391835275,1760899029353,248.71531821,0.00034209,30]
[391835276,1760899029669,151.0,0.00034209,30]
[391835277,1760899029708,250.0,0.00034209,30]
[391835278,1760899029741,1000.0,0.00034209,30]
[391835279,1760899029773,168.3888056,0.00034209,30]
[391835280,1760899029806,386.87667747,0.00034209,30]
[391835281,1760899029842,500.0,0.00034209,30]
[391835282,1760899029875,1000.0,0.00034209,30]
[391835283,1760899029911,3000.0,0.00034209,30]
[391835284,1760899029944,257.91778498,0.00034209,30]
[391835285,1760899030276,151.0,0.00034209,30]
[391835286,1760899030329,1000.0,0.00034209,30]
[391835287,1760899030361,401.19111454,0.00034209,30]
[391835288,1760899030395,174.61919141,0.00034209,30]
[391835289,1760899030430,500.0,0.00034209,30]
[391835290,1760899030463,1000.0,0.00034209,30]
[391835291,1760899030496,3000.0,0.00034209,30]
[391835292,1760899030532,250.0,0.00034209,30]
[391835293,1760899030568,267.46074303,0.00034209,30]
[391835294,1760899030882,151.0,0.00034209,30]
[391835295,1760899030924,1000.0,0.00034209,30]
[391835296,1760899030964,181.08010149,0.00034209,30]
[391835297,1760899031005,1000.0,0.00034209,30]
[391835298,1760899031040,500.0,0.00034209,30]
[391835299,1760899031074,250.0,0.00034209,30]
[391835300,1760899031487,416.03518578,0.00034209,30]
[391835301,1760899031521,151.0,0.00034209,30]
[391835302,1760899031553,1000.0,0.00034209,30]
[391835303,1760899031592,187.78006525,0.00034209,30]
[391835304,1760899031625,1000.0,0.00034209,30]
[391835305,1760899031658,500.0,0.00034209,30]
[391835306,1760899031692,250.0,0.00034209,30]
[391835307,1760899032115,431.42848765,0.00034209,30]
[391835308,1760899032148,151.0,0.00034209,30]
[391835309,1760899032182,1000.0,0.00034209,30]
[391835310,1760899032215,194.72792766,0.00034209,30]
[391835311,1760899032253,250.0,0.00034209,30]
[391835312,1760899032285,500.0,0.00034209,30]
[391835313,1760899032360,1000.0,0.00034209,30]
[391835314,1760899032772,447.3913417,0.00034209,30]
[391835315,1760899032812,1000.0,0.00034209,30]
[391835316,1760899032842,201.93286099,0.00034209,30]
[391835317,1760899032874,151.0,0.00034209,30]
[391835318,1760899032907,250.0,0.00034209,30]
[391835319,1760899032940,500.0,0.00034209,30]
[391835320,1760899033391,463.94482134,0.00034209,30]
[391835321,1760899033452,151.0,0.00034209,30]
[391835322,1760899033490,250.0,0.00034209,30]
[391835323,1760899033525,1000.0,0.00034209,30]
[391835324,1760899033562,1000.0,0.00034209,30]
[391835325,1760899033604,500.0,0.00034209,30]
[391835326,1760899034001,481.11077973,0.00034209,30]
[391835327,1760899034053,151.0,0.00034209,30]
[391835328,1760899034090,250.0,0.00034209,30]
[391835329,1760899034129,1000.0,0.00034209,30]
[391835330,1760899034165,500.0,0.00034209,30]
[391835331,1760899034199,1000.0,0.00034209,30]
[391835332,1760899034664,151.0,0.00034209,30]
[391835333,1760899034703,250.0,0.00034209,30]
[391835334,1760899034738,498.91187858,0.00034209,30]
[391835335,1760899034774,1000.0,0.00034209,30]
[391835336,1760899034810,1000.0,0.00034209,30]
[391835337,1760899035252,500.0,0.00034209,30]
[391835338,1760899035324,517.37161808,0.00034209,30]
[391835339,1760899035356,151.0,0.00034209,30]
[391835340,1760899035389,1000.0,0.00034209,30]
[391835341,1760899035421,250.0,0.00034209,30]
[391835342,1760899035453,1000.0,0.00034209,30]
[391835343,1760899036008,220.0,0.00034209,30]
[391835344,1760899036052,500.0,0.00034209,30]
[391835345,1760899036085,151.0,0.00034209,30]
[391835346,1760899036119,1000.0,0.00034209,30]
[391835347,1760899036159,250.0,0.00034209,30]
[391835348,1760899036194,1000.0,0.00034209,30]
[391835349,1760899036235,536.51436795,0.00034209,30]
[391835350,1760899036557,220.0,0.00034209,30]
[391835351,1760899036619,500.0,0.00034209,30]
[391835352,1760899036653,151.0,0.00034209,30]
[391835353,1760899036686,1000.0,0.00034209,30]
[391835354,1760899036717,1000.0,0.00034209,30]
[391835355,1760899036749,250.0,0.00034209,30]
[391835356,1760899036880,536.51436795,0.00034209,30]
[391835357,1760899037208,220.0,0.00034209,30]
[391835358,1760899037251,500.0,0.00034209,30]
[391835359,1760899037285,1000.0,0.00034209,30]
[391835360,1760899037320,151.0,0.00034209,30]
[391835361,1760899037352,1000.0,0.00034209,30]
[391835362,1760899037384,250.0,0.00034209,30]
[391835363,1760899037834,220.0,0.00034209,30]
[391835364,1760899037908,500.0,0.00034209,30]
[391835365,1760899037941,250.0,0.00034209,30]
[391835366,1760899037994,1000.0,0.00034209,30]
[391835367,1760899038370,520.0,0.00034209,30]
[391835368,1760899038504,500.0,0.00034209,30]
[391835369,1760899038537,250.0,0.00034209,30]
[391835370,1760899038972,539.24,0.00034209,30]
[391835371,1760899039170,250.0,0.00034209,30]
[391835372,1760899039578,559.19188,0.00034209,30]
[391835373,1760899039821,250.0,0.00034209,30]
[391835374,1760899039999,250.0,0.00034209,30]
[391835375,1760899040221,579.88197956,0.00034209,30]
[391835376,1760899040487,200.0,0.00034209,30]
[391835377,1760899040525,151.0,0.00034209,30]
[391835378,1760899040638,250.0,0.00034209,30]
[391835379,1760899040812,601.3376128,0.00034209,30]
[391835380,1760899041107,200.0,0.00034209,30]
[391835381,1760899041141,151.0,0.00034209,30]
[391835382,1760899041206,1000.0,0.00034209,30]
[391835383,1760899041269,250.0,0.00034209,30]
[391835384,1760899041607,623.58710448,0.00034209,30]
[391835385,1760899041665,160.0,0.00034209,30]
[391835386,1760899041709,200.0,0.00034209,30]
[391835387,1760899041759,151.0,0.00034209,30]
[391835388,1760899041808,1000.0,0.00034209,30]
[391835389,1760899041890,250.0,0.00034209,30]
[391835390,1760899042151,151.0,0.00034209,30]
[391835391,1760899042205,646.65982734,0.00034209,30]
[391835392,1760899042301,160.0,0.00034209,30]
[391835393,1760899042335,200.0,0.00034209,30]
[391835394,1760899042384,151.0,0.00034209,30]
[391835395,1760899042423,1000.0,0.00034209,30]
[391835396,1760899042510,250.0,0.00034209,30]
[391835397,1760899042693,151.0,0.00034209,30]
[391835398,1760899042806,156.587,0.00034209,30]
[391835399,1760899042842,670.58624095,0.00034209,30]
[391835400,1760899042912,160.0,0.00034209,30]
[391835401,1760899042954,200.0,0.00034209,30]
[391835402,1760899043013,250.0,0.00034209,30]
[391835403,1760899043049,1000.0,0.00034209,30]
[391835404,1760899043138,151.0,0.00034209,30]
[391835405,1760899043176,250.0,0.00034209,30]
[391835406,1760899043240,200.0,0.00034209,30]
[391835407,1760899043336,151.0,0.00034209,30]
[391835408,1760899043430,156.587,0.00034209,30]
[391835409,1760899043529,160.0,0.00034209,30]
[391835410,1760899043573,200.0,0.00034209,30]
[391835411,1760899043609,250.0,0.00034209,30]
[391835412,1760899043648,1000.0,0.00034209,30]
[391835413,1760899043733,151.0,0.00034209,30]
[391835414,1760899043801,250.0,0.00034209,30]
[391835415,1760899043867,300.0,0.00034209,30]
[391835416,1760899043946,695.39793187,0.00034209,30]
[391835417,1760899044219,151.0,0.00034209,30]
[391835418,1760899044258,160.0,0.00034209,30]
[391835419,1760899044298,200.0,0.00034209,30]
[391835420,1760899044334,250.0,0.00034209,30]
[391835421,1760899044373,1000.0,0.00034209,30]
[391835422,1760899044412,151.0,0.00034209,30]
[391835423,1760899044451,250.0,0.00034209,30]
[391835424,1760899044584,721.12765535,0.00034209,30]
[391835425,1760899044709,151.0,0.00034209,30]
[391835426,1760899044787,160.0,0.00034209,30]
[391835427,1760899044850,1000.0,0.00034209,30]
[391835428,1760899044888,200.0,0.00034209,30]
[391835429,1760899044926,250.0,0.00034209,30]
[391835430,1760899044979,151.0,0.00034209,30]
[391835431,1760899045062,250.0,0.00034209,30]
[391835432,1760899045191,747.8093786,0.00034209,30]
[391835433,1760899045327,151.0,0.00034209,30]
[391835434,1760899045389,160.0,0.00034209,30]
[391835435,1760899045487,1000.0,0.00034209,30]
[391835436,1760899045525,200.0,0.00034209,30]
[391835437,1760899045566,250.0,0.00034209,30]
[391835438,1760899045611,151.0,0.00034209,30]
[391835439,1760899045659,250.0,0.00034209,30]
[391835440,1760899045806,775.47832561,0.00034209,30]
[391835441,1760899045922,151.0,0.00034209,30]
[391835442,1760899046001,160.0,0.00034209,30]
[391835443,1760899046097,1000.0,0.00034209,30]
[391835444,1760899046139,200.0,0.00034209,30]
[391835445,1760899046179,250.0,0.00034209,30]
[391835446,1760899046228,151.0,0.00034209,30]
[391835447,1760899046271,250.0,0.00034209,30]
[391835448,1760899046542,151.0,0.00034209,30]
[391835449,1760899046580,804.17102365,0.00034209,30]
[391835450,1760899046618,160.0,0.00034209,30]
[391835451,1760899046700,1000.0,0.00034209,30]
[391835452,1760899046734,200.0,0.00034209,30]
[391835453,1760899046773,250.0,0.00034209,30]
[391835454,1760899046854,151.0,0.00034209,30]
[391835455,1760899046886,250.0,0.00034209,30]
[391835456,1760899047149,151.0,0.00034209,30]
[391835457,1760899047189,833.92535153,0.00034209,30]
[391835458,1760899047265,160.0,0.00034209,30]
[391835459,1760899047330,200.0,0.00034209,30]
[391835460,1760899047363,1000.0,0.00034209,30]
[391835461,1760899047395,250.0,0.00034209,30]
[391835462,1760899047475,151.0,0.00034209,30]
[391835463,1760899047508,250.0,0.00034209,30]
[391835464,1760899047758,864.78058953,0.00034209,30]
[391835465,1760899047793,151.0,0.00034209,30]
[391835466,1760899047952,200.0,0.00034209,30]
[391835467,1760899047988,160.44976004,0.00034209,30]
[391835468,1760899048025,1000.0,0.00034209,30]
[391835469,1760899048060,250.0,0.00034209,30]
[391835470,1760899048095,151.0,0.00034209,30]
[391835471,1760899048133,250.0,0.00034209,30]
[391835472,1760899048394,896.77747135,0.00034209,30]
[391835473,1760899048427,151.0,0.00034209,30]
[391835474,1760899048584,1000.0,0.00034209,30]
[391835475,1760899048620,250.0,0.00034209,30]
[391835476,1760899048696,151.0,0.00034209,30]
[391835477,1760899048737,250.0,0.00034209,30]
[391835478,1760899049039,929.95823779,0.00034209,30]
[391835479,1760899049076,151.0,0.00034209,30]
[391835480,1760899049240,250.0,0.00034209,30]
[391835481,1760899049279,1000.0,0.00034209,30]
[391835482,1760899049335,151.0,0.00034209,30]
[391835483,1760899049370,250.0,0.00034209,30]
[391835484,1760899049898,250.0,0.00034209,30]
[391835485,1760899049941,1000.0,0.00034209,30]
[391835486,1760899049982,151.0,0.00034209,30]
[391835487,1760899050019,250.0,0.00034209,30]
[391835488,1760899050470,250.0,0.00034209,30]
[391835489,1760899050563,151.0,0.00034209,30]
[391835490,1760899050605,250.0,0.00034209,30]
[391835491,1760899051188,151.0,0.00034209,30]
[391835492,1760899051229,1000.0,0.00034209,30]
[391835493,1760899051268,250.0,0.00034209,30]
[391835494,1760899051314,151.0,0.00034209,30]
[391835495,1760899051352,250.0,0.00034209,30]
[391835496,1760899051664,151.0,0.00034209,30]
[391835497,1760899051725,250.0,0.00034209,30]
[391835498,1760899051759,1000.0,0.00034209,30]
[391835499,1760899051795,151.0,0.00034209,30]
[391835500,1760899051828,250.0,0.00034209,30]
[391835501,1760899052179,200.0,0.00034209,30]
[391835502,1760899052278,151.0,0.00034209,30]
[391835503,1760899052356,1000.0,0.00034209,30]
[391835504,1760899052395,250.0,0.00034209,30]
[391835505,1760899052439,151.0,0.00034209,30]
[391835506,1760899052843,200.0,0.00034209,30]
[391835507,1760899052930,151.0,0.00034209,30]
[391835508,1760899052978,1000.0,0.00034209,30]
[391835509,1760899053046,250.0,0.00034209,30]
[391835510,1760899053424,151.0,0.00034209,30]
[391835511,1760899053459,200.0,0.00034209,30]
[391835512,1760899053611,151.0,0.00034209,30]
[391835513,1760899053648,1000.0,0.00034209,30]
[391835514,1760899053680,250.0,0.00034209,30]
[391835515,1760899054060,200.0,0.00034209,30]
[391835516,1760899054098,151.0,0.00034209,30]
[391835517,1760899054255,151.0,0.00034209,30]
[391835518,1760899054296,250.0,0.00034209,30]
[391835519,1760899054665,200.0,0.00034209,30]
[391835520,1760899054701,151.0,0.00034209,30]
[391835521,1760899054889,151.0,0.00034209,30]
[391835522,1760899055058,250.0,0.00034209,30]
[391835523,1760899055261,200.0,0.00034209,30]
[391835524,1760899055310,200.0,0.00034209,30]
[391835525,1760899055346,151.0,0.00034209,30]
[391835526,1760899055531,151.0,0.00034209,30]
[391835527,1760899055910,207.4,0.00034209,50]
[391835528,1760899055959,151.0,0.00034209,30]
[391835529,1760899055994,200.0,0.00034209,30]
[391835530,1760899056198,151.0,0.00034209,30]
[391835531,1760899056534,215.0738,0.00034209,60]
[391835532,1760899056569,151.0,0.00034209,30]
[391835533,1760899056608,200.0,0.00034209,30]
[391835534,1760899056809,151.0,0.00034209,30]
[391835535,1760899057140,151.0,0.00034209,30]
[391835536,1760899057177,223.0315306,0.00034209,49]
[391835537,1760899057214,200.0,0.00034209,30]
[391835538,1760899057430,151.0,0.00034209,30]
[391835539,1760899057772,151.0,0.00034209,30]
[391835540,1760899057808,231.28369723,0.00034209,58]
[391835541,1760899057847,200.0,0.00034209,30]
[391835542,1760899058047,151.0,0.00034209,30]